[Event "Live Chess"]
[Site "Chess.com"]
[Date "2023.05.20"]
[Round "-"]
[White "MarkLim1"]
[Black "xx_blindpuffin_xx"]
[Result "0-1"]
[WhiteElo "1629"]
[BlackElo "2190"]
[TimeControl "300"]
[EndTime "10:46:42 PDT"]
[Termination "xx_blindpuffin_xx won on time"]

1. d4 {[%clk 0:04:58.9]} 1... e6 {[%clk 0:04:59.1]} 2. Nf3 {[%clk 0:04:58]} 2...
c5 {[%clk 0:04:57.9]} 3. e3 {[%clk 0:04:56.6]} 3... Nc6 {[%clk 0:04:56.8]} 4. c3
{[%clk 0:04:55.1]} 4... Nf6 {[%clk 0:04:56.1]} 5. Bd3 {[%clk 0:04:53.8]} 5...
Be7 {[%clk 0:04:55.1]} 6. O-O {[%clk 0:04:52.4]} 6... O-O {[%clk 0:04:54.2]} 7.
Nbd2 {[%clk 0:04:51.5]} 7... b6 {[%clk 0:04:50.1]} 8. a3 {[%clk 0:04:50.7]} 8...
Bb7 {[%clk 0:04:48.4]} 9. e4 {[%clk 0:04:49]} 9... d6 {[%clk 0:04:46.3]} 10. Re1
{[%clk 0:04:47.3]} 10... Rc8 {[%clk 0:04:44.1]} 11. Nf1 {[%clk 0:04:37.7]} 11...
Na5 {[%clk 0:04:38.5]} 12. Ng3 {[%clk 0:04:34.7]} 12... c4 {[%clk 0:04:34.4]}
13. Bc2 {[%clk 0:04:33.2]} 13... Qc7 {[%clk 0:04:15.2]} 14. Bf4 {[%clk
0:04:27.6]} 14... Rfd8 {[%clk 0:03:49]} 15. Qe2 {[%clk 0:04:25.3]} 15... Nd7
{[%clk 0:03:31]} 16. e5 {[%clk 0:04:12.3]} 16... Bxf3 {[%clk 0:03:01.7]} 17.
Qxf3 {[%clk 0:04:09.6]} 17... dxe5 {[%clk 0:03:00.9]} 18. Bxe5 {[%clk
0:04:02.7]} 18... Nxe5 {[%clk 0:02:59.6]} 19. Rxe5 {[%clk 0:04:01.3]} 19... Bf6
{[%clk 0:02:42]} 20. Rh5 {[%clk 0:03:55.6]} 20... Qc6 {[%clk 0:02:10.7]} 21.
Bxh7+ {[%clk 0:03:48.9]} 21... Kf8 {[%clk 0:02:08.7]} 22. Be4 {[%clk 0:03:36.9]}
22... Qc7 {[%clk 0:01:54.3]} 23. Rh8+ {[%clk 0:03:08]} 23... Ke7 {[%clk
0:01:52.2]} 24. Rxd8 {[%clk 0:03:06.8]} 24... Rxd8 {[%clk 0:01:51.6]} 25. h3
{[%clk 0:03:00.5]} 25... Nb3 {[%clk 0:01:50.1]} 26. Re1 {[%clk 0:02:57.1]} 26...
g6 {[%clk 0:01:27.5]} 27. Nf1 {[%clk 0:02:37.7]} 27... Nd2 {[%clk 0:01:18.3]}
28. Nxd2 {[%clk 0:02:36.1]} 28... Rh8 {[%clk 0:01:16.8]} 29. d5 {[%clk
0:02:27.3]} 29... e5 {[%clk 0:01:09]} 30. Qe2 {[%clk 0:02:15.9]} 30... b5 {[%clk
0:01:06.4]} 31. a4 {[%clk 0:02:13.6]} 31... a6 {[%clk 0:01:04.5]} 32. a5 {[%clk
0:02:12.4]} 32... Kf8 {[%clk 0:01:01.8]} 33. b4 {[%clk 0:02:04.5]} 33... cxb3
{[%clk 0:00:59.1]} 34. Nxb3 {[%clk 0:02:03.3]} 34... Qxc3 {[%clk 0:00:55.9]} 35.
Qc2 {[%clk 0:01:53.8]} 35... Qxe1+ {[%clk 0:00:54.1]} 36. Kh2 {[%clk 0:01:52.3]}
36... Kg7 {[%clk 0:00:50]} 37. d6 {[%clk 0:01:46.3]} 37... Rd8 {[%clk
0:00:47.8]} 38. Nc5 {[%clk 0:01:32.6]} 38... Rxd6 {[%clk 0:00:44.2]} 39. Nb7
{[%clk 0:01:16.8]} 39... Rd2 {[%clk 0:00:41.8]} 40. Qc6 {[%clk 0:01:09.7]} 40...
Rxf2 {[%clk 0:00:39.8]} 41. Nd6 {[%clk 0:01:04.4]} 41... Bg5 {[%clk 0:00:33.7]}
42. Ne8+ {[%clk 0:00:47.7]} 42... Kh6 {[%clk 0:00:30.1]} 43. h4 {[%clk 0:00:31]}
43... Bf4+ {[%clk 0:00:24.9]} 44. Kh3 {[%clk 0:00:29.1]} 44... Qe3+ {[%clk
0:00:18.1]} 45. Bf3 {[%clk 0:00:24.7]} 45... Rxf3+ {[%clk 0:00:17.2]} 46. Qxf3
{[%clk 0:00:20.1]} 46... Qg1 {[%clk 0:00:16.4]} 47. Nf6 {[%clk 0:00:16.6]} 47...
Qh2+ {[%clk 0:00:14.8]} 48. Kg4 {[%clk 0:00:15.9]} 48... Kg7 {[%clk 0:00:13.4]}
49. Ne8+ {[%clk 0:00:14.8]} 49... Kf8 {[%clk 0:00:11.8]} 50. Nd6 {[%clk
0:00:13.7]} 50... f5+ {[%clk 0:00:10.9]} 51. Nxf5 {[%clk 0:00:11.7]} 51... gxf5+
{[%clk 0:00:10.8]} 52. Kxf5 {[%clk 0:00:11.6]} 52... Qxh4 {[%clk 0:00:10.7]} 53.
Ke4 {[%clk 0:00:10.7]} 53... Qg5 {[%clk 0:00:10]} 54. g3 {[%clk 0:00:09.9]}
54... Qg6+ {[%clk 0:00:09.9]} 55. Kd5 {[%clk 0:00:08.9]} 55... Qxg3 {[%clk
0:00:09.8]} 56. Qh5 {[%clk 0:00:07.7]} 56... Qg7 {[%clk 0:00:08.6]} 57. Qf5+
{[%clk 0:00:06.5]} 57... Qf7+ {[%clk 0:00:08.5]} 58. Qxf7+ {[%clk 0:00:02.6]}
58... Kxf7 {[%clk 0:00:08.4]} 59. Ke4 {[%clk 0:00:01.8]} 59... Kf6 {[%clk
0:00:08.3]} 60. Kf3 {[%clk 0:00:00.9]} 60... Ke6 {[%clk 0:00:08.2]} 61. Ke2
{[%clk 0:00:00.3]} 61... Kd5 {[%clk 0:00:08.1]} 0-1

[Event "Live Chess"]
[Site "Chess.com"]
[Date "2023.05.20"]
[Round "-"]
[White "Singapourfeuj"]
[Black "1600x"]
[Result "1-0"]
[WhiteElo "2251"]
[BlackElo "1551"]
[TimeControl "300"]
[EndTime "10:46:47 PDT"]
[Termination "Singapourfeuj won by resignation"]

1. d4 {[%clk 0:04:51.8]} 1... d5 {[%clk 0:04:53.2]} 2. c4 {[%clk 0:04:50.1]}
2... dxc4 {[%clk 0:04:51.5]} 3. e4 {[%clk 0:04:47.5]} 3... c6 {[%clk 0:04:49.8]}
4. Bxc4 {[%clk 0:04:46.1]} 4... b5 {[%clk 0:04:47.6]} 5. Bb3 {[%clk 0:04:44.6]}
5... Nf6 {[%clk 0:04:45]} 6. Nc3 {[%clk 0:04:43.2]} 6... b4 {[%clk 0:04:43.4]}
7. Na4 {[%clk 0:04:41.1]} 7... Nxe4 {[%clk 0:04:41.2]} 8. Nf3 {[%clk 0:04:36.6]}
8... Qd7 {[%clk 0:04:40.8]} 9. Ne5 {[%clk 0:04:35.3]} 9... Qd6 {[%clk
0:04:39.3]} 10. Bxf7+ {[%clk 0:04:33.5]} 10... Kd8 {[%clk 0:04:37.3]} 11. Bg6
{[%clk 0:04:29.4]} 11... Qd5 {[%clk 0:04:35.3]} 12. Bxe4 {[%clk 0:04:26.4]}
12... Qxe4+ {[%clk 0:04:33.9]} 13. Qe2 {[%clk 0:04:25]} 13... Qxg2 {[%clk
0:04:32.7]} 14. Rf1 {[%clk 0:04:22.8]} 14... Ke8 {[%clk 0:04:31.5]} 15. Bd2
{[%clk 0:04:19.1]} 15... Qd5 {[%clk 0:04:28.3]} 16. Bxb4 {[%clk 0:04:16.2]}
16... h5 {[%clk 0:04:24.8]} 17. Nc3 {[%clk 0:04:14.9]} 17... Qxd4 {[%clk
0:04:23]} 18. Ba3 {[%clk 0:04:09.9]} 18... Na6 {[%clk 0:04:19.1]} 19. Rd1 {[%clk
0:04:07.6]} 19... Qxe5 {[%clk 0:04:17.5]} 20. Qxe5 {[%clk 0:04:05.7]} 20... Rh6
{[%clk 0:04:15.9]} 21. Qa5 {[%clk 0:03:55.4]} 21... Bb7 {[%clk 0:04:11.2]} 22.
Ne4 {[%clk 0:03:53.2]} 22... Rb8 {[%clk 0:04:09.7]} 23. f3 {[%clk 0:03:50.7]}
23... Re6 {[%clk 0:04:07.9]} 24. Qxh5+ {[%clk 0:03:48.1]} 24... g6 {[%clk
0:04:06.5]} 25. Qh8 {[%clk 0:03:43.7]} 25... Bc8 {[%clk 0:04:02.9]} 26. Kf2
{[%clk 0:03:41.4]} 26... c5 {[%clk 0:04:01.4]} 27. Rfe1 {[%clk 0:03:40]} 27...
Bd7 {[%clk 0:04:00]} 28. Nxc5 {[%clk 0:03:37]} 28... Rxe1 {[%clk 0:03:57.8]} 29.
Rxe1 {[%clk 0:03:35.5]} 29... Nxc5 {[%clk 0:03:55.4]} 30. Bxc5 {[%clk
0:03:34.4]} 30... Be6 {[%clk 0:03:52.9]} 31. Rxe6 {[%clk 0:03:32.8]} 31... Kf7
{[%clk 0:03:45.5]} 32. Rxe7+ {[%clk 0:03:30.9]} 32... Bxe7 {[%clk 0:03:44]} 33.
Qxb8 {[%clk 0:03:29.8]} 33... Bxc5+ {[%clk 0:03:42.7]} 34. Ke2 {[%clk
0:03:29.3]} 34... Ke6 {[%clk 0:03:41.3]} 35. b4 {[%clk 0:03:28.4]} 35... Bd6
{[%clk 0:03:39.6]} 36. Qxa7 {[%clk 0:03:26.6]} 36... Bxb4 {[%clk 0:03:38.5]} 37.
Qb6+ {[%clk 0:03:25.3]} 37... Bd6 {[%clk 0:03:37.5]} 38. a4 {[%clk 0:03:24.3]}
38... Kd7 {[%clk 0:03:36.1]} 39. Qxd6+ {[%clk 0:03:22.2]} 39... Kxd6 {[%clk
0:03:34.8]} 40. f4 {[%clk 0:03:21.5]} 40... Kc6 {[%clk 0:03:34.4]} 41. f5 {[%clk
0:03:20.3]} 41... gxf5 {[%clk 0:03:33]} 42. h4 {[%clk 0:03:19.7]} 42... f4
{[%clk 0:03:29.6]} 43. h5 {[%clk 0:03:18.9]} 43... f3+ {[%clk 0:03:27.9]} 44.
Kxf3 {[%clk 0:03:18]} 44... Kc5 {[%clk 0:03:26.4]} 45. h6 {[%clk 0:03:17.4]}
45... Kb4 {[%clk 0:03:24.2]} 46. h7 {[%clk 0:03:16.8]} 46... Kxa4 {[%clk
0:03:23]} 47. h8=Q {[%clk 0:03:15.5]} 47... Kb5 {[%clk 0:03:16.6]} 48. Qc8
{[%clk 0:03:13.9]} 48... Kb4 {[%clk 0:03:15.6]} 49. Ke4 {[%clk 0:02:52.3]} 49...
Kb5 {[%clk 0:03:13.1]} 50. Kd5 {[%clk 0:02:51.2]} 50... Kb4 {[%clk 0:03:12]} 51.
Qc4+ {[%clk 0:02:49.7]} 51... Ka3 {[%clk 0:03:10.2]} 52. Qb5 {[%clk 0:02:46.6]}
1-0

[Event "Live Chess"]
[Site "Chess.com"]
[Date "2023.05.20"]
[Round "-"]
[White "Enhard"]
[Black "Jio85"]
[Result "0-1"]
[WhiteElo "1440"]
[BlackElo "2007"]
[TimeControl "300"]
[EndTime "10:46:47 PDT"]
[Termination "Jio85 won by resignation"]

1. d4 {[%clk 0:04:57.3]} 1... f5 {[%clk 0:04:58.7]} 2. Bg5 {[%clk 0:04:55.3]}
2... Nf6 {[%clk 0:04:57.2]} 3. e3 {[%clk 0:04:53.1]} 3... e6 {[%clk 0:04:54.3]}
4. Bxf6 {[%clk 0:04:51.3]} 4... Qxf6 {[%clk 0:04:53.1]} 5. Nf3 {[%clk
0:04:46.8]} 5... b6 {[%clk 0:04:52.3]} 6. Be2 {[%clk 0:04:44.7]} 6... Bb7 {[%clk
0:04:50.4]} 7. O-O {[%clk 0:04:43.4]} 7... Be7 {[%clk 0:04:48.3]} 8. Ne5 {[%clk
0:04:42]} 8... Nc6 {[%clk 0:04:46.3]} 9. Nxc6 {[%clk 0:04:37.6]} 9... Bxc6
{[%clk 0:04:44.6]} 10. Bf3 {[%clk 0:04:37.2]} 10... O-O {[%clk 0:04:41.4]} 11.
Bxc6 {[%clk 0:04:35.9]} 11... dxc6 {[%clk 0:04:40.4]} 12. f4 {[%clk 0:04:30.7]}
12... c5 {[%clk 0:04:38.1]} 13. c3 {[%clk 0:04:29.5]} 13... Rfd8 {[%clk
0:04:35.5]} 14. Qf3 {[%clk 0:04:26.4]} 14... cxd4 {[%clk 0:04:32.3]} 15. cxd4
{[%clk 0:04:24.4]} 15... c5 {[%clk 0:04:31.9]} 16. Nc3 {[%clk 0:04:20.9]} 16...
cxd4 {[%clk 0:04:30.7]} 17. exd4 {[%clk 0:04:19.8]} 17... Qxd4+ {[%clk
0:04:29.6]} 18. Kh1 {[%clk 0:04:17.7]} 18... Qd3 {[%clk 0:04:19.5]} 19. Qb7
{[%clk 0:04:06]} 19... Qd7 {[%clk 0:04:00.5]} 20. Qf3 {[%clk 0:04:02.4]} 20...
Qd3 {[%clk 0:03:52.8]} 21. Rfd1 {[%clk 0:03:55.9]} 21... Qxf3 {[%clk 0:03:50.8]}
22. Rxd8+ {[%clk 0:03:54.6]} 22... Rxd8 {[%clk 0:03:49.3]} 23. gxf3 {[%clk
0:03:54.1]} 23... Rd2 {[%clk 0:03:48.5]} 24. Re1 {[%clk 0:03:50.8]} 24... Kf7
{[%clk 0:03:46.3]} 25. Rb1 {[%clk 0:03:44.9]} 25... Bd6 {[%clk 0:03:41.4]} 26.
Nb5 {[%clk 0:03:41.8]} 26... Bxf4 {[%clk 0:03:39.3]} 0-1

[Event "Live Chess"]
[Site "Chess.com"]
[Date "2023.05.20"]
[Round "-"]
[White "NatashaRegan"]
[Black "LiamBellwood"]
[Result "0-1"]
[WhiteElo "1872"]
[BlackElo "2080"]
[TimeControl "300"]
[EndTime "10:47:09 PDT"]
[Termination "LiamBellwood won by resignation"]

1. e4 {[%clk 0:04:55.3]} 1... e6 {[%clk 0:04:59.9]} 2. d4 {[%clk 0:04:50.3]}
2... d5 {[%clk 0:04:59.1]} 3. e5 {[%clk 0:04:48.2]} 3... Bd7 {[%clk 0:04:57.5]}
4. c4 {[%clk 0:04:44.2]} 4... dxc4 {[%clk 0:04:52.6]} 5. Bxc4 {[%clk 0:04:41]}
5... Bc6 {[%clk 0:04:51.9]} 6. Nf3 {[%clk 0:04:39.2]} 6... Ne7 {[%clk
0:04:42.9]} 7. Nc3 {[%clk 0:04:36.7]} 7... Nd5 {[%clk 0:04:33.8]} 8. O-O {[%clk
0:04:29.3]} 8... Be7 {[%clk 0:04:32.9]} 9. Ne4 {[%clk 0:04:26]} 9... O-O {[%clk
0:04:18.5]} 10. Bg5 {[%clk 0:04:14.2]} 10... h6 {[%clk 0:04:14.2]} 11. Bxe7
{[%clk 0:04:01.5]} 11... Qxe7 {[%clk 0:04:13.2]} 12. Re1 {[%clk 0:03:52.3]}
12... Nd7 {[%clk 0:03:56.6]} 13. Qd2 {[%clk 0:03:40.4]} 13... N7b6 {[%clk
0:03:54]} 14. Bd3 {[%clk 0:03:35.6]} 14... a6 {[%clk 0:03:12.6]} 15. Rac1 {[%clk
0:03:24.5]} 15... Bb5 {[%clk 0:03:00.1]} 16. Bxb5 {[%clk 0:03:16.5]} 16... axb5
{[%clk 0:03:00]} 17. a3 {[%clk 0:03:10.8]} 17... Nc4 {[%clk 0:02:54.2]} 18. Qe2
{[%clk 0:03:03.2]} 18... c6 {[%clk 0:02:43.9]} 19. h3 {[%clk 0:02:49.2]} 19...
Rfd8 {[%clk 0:02:31.4]} 20. Nh2 {[%clk 0:02:39.5]} 20... Nf4 {[%clk 0:02:25.7]}
21. Qg4 {[%clk 0:02:33.6]} 21... Ng6 {[%clk 0:02:17.7]} 22. Qh5 {[%clk
0:02:25.1]} 22... Nxb2 {[%clk 0:02:05.4]} 23. Rc3 {[%clk 0:02:14.8]} 23... Qh4
{[%clk 0:01:53.9]} 24. Qe2 {[%clk 0:01:58.1]} 24... Nc4 {[%clk 0:01:50.7]} 25.
Ng4 {[%clk 0:01:52.2]} 25... Rxd4 {[%clk 0:01:39.7]} 26. Rg3 {[%clk 0:01:39.3]}
26... Rd5 {[%clk 0:01:04.9]} 27. Ngf6+ {[%clk 0:01:32.6]} 27... gxf6 {[%clk
0:01:00.7]} 28. Nxf6+ {[%clk 0:01:31.6]} 28... Kf8 {[%clk 0:00:59.7]} 29. Nxd5
{[%clk 0:01:26.1]} 29... cxd5 {[%clk 0:00:57.2]} 30. Rg4 {[%clk 0:01:20.7]}
30... Qh5 {[%clk 0:00:50.7]} 31. Qf3 {[%clk 0:01:13.7]} 31... Qf5 {[%clk
0:00:31.2]} 32. Qc3 {[%clk 0:00:59.6]} 32... Rxa3 {[%clk 0:00:28.4]} 33. Qb4+
{[%clk 0:00:58.2]} 33... Ke8 {[%clk 0:00:20.1]} 34. Rxc4 {[%clk 0:00:55.5]}
34... dxc4 {[%clk 0:00:14.3]} 35. Qxa3 {[%clk 0:00:53.9]} 35... Nxe5 {[%clk
0:00:14]} 36. Qa8+ {[%clk 0:00:51]} 36... Ke7 {[%clk 0:00:13.1]} 37. Qxb7+
{[%clk 0:00:50.1]} 37... Kf6 {[%clk 0:00:12.7]} 38. Qxb5 {[%clk 0:00:46.4]}
38... Nf3+ {[%clk 0:00:11.9]} 39. gxf3 {[%clk 0:00:43.6]} 39... Qxb5 {[%clk
0:00:11.8]} 40. Kg2 {[%clk 0:00:33.4]} 40... Qb2 {[%clk 0:00:10.9]} 41. Re3
{[%clk 0:00:31.4]} 41... c3 {[%clk 0:00:10.4]} 42. Re4 {[%clk 0:00:30.3]} 42...
c2 {[%clk 0:00:09.7]} 43. Rc4 {[%clk 0:00:29.5]} 43... c1=Q {[%clk 0:00:09.1]}
44. Rxc1 {[%clk 0:00:28.5]} 44... Qxc1 {[%clk 0:00:09]} 45. Kg3 {[%clk
0:00:27.1]} 45... Qg5+ {[%clk 0:00:08.4]} 46. Kh2 {[%clk 0:00:26]} 46... h5
{[%clk 0:00:08.3]} 47. Kh1 {[%clk 0:00:24.7]} 47... h4 {[%clk 0:00:07.9]} 48.
Kh2 {[%clk 0:00:24.1]} 48... Qf4+ {[%clk 0:00:07.8]} 49. Kh1 {[%clk 0:00:23.2]}
49... Qxf3+ {[%clk 0:00:06.9]} 50. Kh2 {[%clk 0:00:22.5]} 50... Qxf2+ {[%clk
0:00:06.3]} 51. Kh1 {[%clk 0:00:21.9]} 51... Qf3+ {[%clk 0:00:05.7]} 52. Kh2
{[%clk 0:00:20.9]} 52... e5 {[%clk 0:00:05.6]} 53. Kg1 {[%clk 0:00:18.4]} 53...
e4 {[%clk 0:00:05.2]} 0-1

[Event "Live Chess"]
[Site "Chess.com"]
[Date "2023.05.20"]
[Round "-"]
[White "seabuck"]
[Black "Duke_of_Bebington"]
[Result "1-0"]
[WhiteElo "1862"]
[BlackElo "1581"]
[TimeControl "300"]
[EndTime "10:47:13 PDT"]
[Termination "seabuck won on time"]

1. d4 {[%clk 0:04:58.4]} 1... d5 {[%clk 0:04:59]} 2. c4 {[%clk 0:04:57.3]} 2...
c6 {[%clk 0:04:57.6]} 3. cxd5 {[%clk 0:04:55.6]} 3... cxd5 {[%clk 0:04:56.2]} 4.
Nc3 {[%clk 0:04:54.8]} 4... e5 {[%clk 0:04:48.7]} 5. e3 {[%clk 0:04:40.9]} 5...
exd4 {[%clk 0:04:35.1]} 6. exd4 {[%clk 0:04:37.4]} 6... Nc6 {[%clk 0:04:32.1]}
7. Nf3 {[%clk 0:04:34.5]} 7... Nf6 {[%clk 0:04:31.2]} 8. Bg5 {[%clk 0:04:24.2]}
8... Be7 {[%clk 0:04:29.7]} 9. Bd3 {[%clk 0:04:21.5]} 9... O-O {[%clk
0:04:26.2]} 10. O-O {[%clk 0:04:20.1]} 10... Be6 {[%clk 0:04:23.2]} 11. h3
{[%clk 0:04:08.6]} 11... Rc8 {[%clk 0:04:12.4]} 12. Re1 {[%clk 0:04:06.3]} 12...
Re8 {[%clk 0:04:07.6]} 13. a3 {[%clk 0:04:04.5]} 13... Na5 {[%clk 0:04:01.4]}
14. Qc2 {[%clk 0:03:49.2]} 14... h6 {[%clk 0:03:58.5]} 15. Bh4 {[%clk 0:03:45]}
15... Qb6 {[%clk 0:03:26]} 16. Rad1 {[%clk 0:03:26.8]} 16... Nc4 {[%clk
0:03:10.6]} 17. Bxc4 {[%clk 0:03:24.9]} 17... Rxc4 {[%clk 0:03:07.8]} 18. Qd2
{[%clk 0:03:03.5]} 18... Rec8 {[%clk 0:02:58.2]} 19. Ne5 {[%clk 0:02:47.8]}
19... R4c7 {[%clk 0:02:50.6]} 20. Re2 {[%clk 0:02:35.3]} 20... Qb3 {[%clk
0:02:25.6]} 21. Rde1 {[%clk 0:02:21.3]} 21... Bxa3 {[%clk 0:01:51.5]} 22. Bxf6
{[%clk 0:02:09.5]} 22... gxf6 {[%clk 0:01:23.2]} 23. Qxh6 {[%clk 0:01:45.5]}
23... fxe5 {[%clk 0:01:09.6]} 24. Rxe5 {[%clk 0:01:42.1]} 24... Be7 {[%clk
0:01:06.6]} 25. Rxe6 {[%clk 0:01:21.4]} 25... fxe6 {[%clk 0:01:05.2]} 26. Rxe6
{[%clk 0:01:05.8]} 26... Bf8 {[%clk 0:00:57.3]} 27. Qg6+ {[%clk 0:00:35.2]}
27... Rg7 {[%clk 0:00:53.8]} 28. Qf5 {[%clk 0:00:23.1]} 28... Rcc7 {[%clk
0:00:47.1]} 29. Nxd5 {[%clk 0:00:19.5]} 29... Qd1+ {[%clk 0:00:25.8]} 30. Kh2
{[%clk 0:00:17.6]} 30... Qxd4 {[%clk 0:00:22.6]} 31. Nf6+ {[%clk 0:00:15.4]}
31... Kh8 {[%clk 0:00:17.2]} 32. Qh5+ {[%clk 0:00:14.1]} 32... Rh7 {[%clk
0:00:15.1]} 33. Nxh7 {[%clk 0:00:13.3]} 33... Rxh7 {[%clk 0:00:12.6]} 34. Qf5
{[%clk 0:00:12.6]} 34... Bd6+ {[%clk 0:00:07.4]} 35. g3 {[%clk 0:00:08.7]} 35...
Re7 {[%clk 0:00:03.4]} 36. Rh6+ {[%clk 0:00:07]} 36... Rh7 {[%clk 0:00:02.2]}
37. Qc8+ {[%clk 0:00:05.1]} 37... Kg7 {[%clk 0:00:00.5]} 38. Rxh7+ {[%clk
0:00:02.3]} 1-0

[Event "Live Chess"]
[Site "Chess.com"]
[Date "2023.05.20"]
[Round "-"]
[White "Chesscoach_Golichenko"]
[Black "Doge_Dandolo"]
[Result "1-0"]
[WhiteElo "2652"]
[BlackElo "2120"]
[TimeControl "300"]
[EndTime "10:47:17 PDT"]
[Termination "Chesscoach_Golichenko won by resignation"]

1. d4 {[%clk 0:04:55.8]} 1... d5 {[%clk 0:04:58.5]} 2. Nc3 {[%clk 0:04:50.7]}
2... Nf6 {[%clk 0:04:56.7]} 3. Bf4 {[%clk 0:04:46.5]} 3... c6 {[%clk 0:04:55.5]}
4. f3 {[%clk 0:04:43.1]} 4... h5 {[%clk 0:04:53.5]} 5. e4 {[%clk 0:04:40.6]}
5... dxe4 {[%clk 0:04:49.8]} 6. fxe4 {[%clk 0:04:39.2]} 6... Bg4 {[%clk
0:04:48.6]} 7. Nf3 {[%clk 0:04:36.6]} 7... e6 {[%clk 0:04:46.2]} 8. h3 {[%clk
0:04:33.5]} 8... Bxf3 {[%clk 0:04:44.4]} 9. gxf3 {[%clk 0:04:33.4]} 9... Bb4
{[%clk 0:04:37.3]} 10. Qd3 {[%clk 0:04:25.8]} 10... Nbd7 {[%clk 0:04:28]} 11. a3
{[%clk 0:04:20.2]} 11... Ba5 {[%clk 0:04:17]} 12. O-O-O {[%clk 0:04:18.1]} 12...
Qe7 {[%clk 0:04:13.8]} 13. Rg1 {[%clk 0:04:10.6]} 13... g6 {[%clk 0:04:05.5]}
14. d5 {[%clk 0:04:06]} 14... Bxc3 {[%clk 0:03:59.9]} 15. Qxc3 {[%clk
0:04:02.6]} 15... cxd5 {[%clk 0:03:56.6]} 16. exd5 {[%clk 0:04:01.3]} 16... Rc8
{[%clk 0:03:51.9]} 17. Qxc8+ {[%clk 0:03:59]} 1-0

[Event "Live Chess"]
[Site "Chess.com"]
[Date "2023.05.20"]
[Round "-"]
[White "lHolyDiverl"]
[Black "Andysav3"]
[Result "0-1"]
[WhiteElo "562"]
[BlackElo "1694"]
[TimeControl "300"]
[EndTime "10:47:21 PDT"]
[Termination "Andysav3 won on time"]

1. d4 {[%clk 0:04:59]} 1... Nf6 {[%clk 0:04:58.2]} 2. Nc3 {[%clk 0:04:57.5]}
2... d5 {[%clk 0:04:56.5]} 3. Bf4 {[%clk 0:04:56.1]} 3... e6 {[%clk 0:04:53.9]}
4. Nb5 {[%clk 0:04:54.9]} 4... Na6 {[%clk 0:04:47.9]} 5. Nf3 {[%clk 0:04:51.7]}
5... c6 {[%clk 0:04:42]} 6. Nc3 {[%clk 0:04:49.7]} 6... Be7 {[%clk 0:04:36]} 7.
e3 {[%clk 0:04:34.1]} 7... O-O {[%clk 0:04:34.1]} 8. h3 {[%clk 0:04:04.5]} 8...
h6 {[%clk 0:04:18.9]} 9. Qd3 {[%clk 0:03:45.4]} 9... c5 {[%clk 0:04:03.6]} 10.
b3 {[%clk 0:03:21.5]} 10... Bd7 {[%clk 0:03:46.9]} 11. e4 {[%clk 0:02:59.8]}
11... Nb4 {[%clk 0:03:33.5]} 12. Qe2 {[%clk 0:02:51.2]} 12... dxe4 {[%clk
0:03:18.9]} 13. Nxe4 {[%clk 0:02:36.5]} 13... Bc6 {[%clk 0:03:10.9]} 14. Nxf6+
{[%clk 0:01:44.8]} 14... Bxf6 {[%clk 0:03:08.3]} 15. a3 {[%clk 0:01:20.1]} 15...
cxd4 {[%clk 0:02:41.4]} 16. axb4 {[%clk 0:01:09.7]} 16... d3 {[%clk 0:02:39.6]}
17. Qxd3 {[%clk 0:00:57.8]} 17... Bxa1 {[%clk 0:02:31.3]} 18. Ne5 {[%clk
0:00:34.6]} 18... Qf6 {[%clk 0:02:06.1]} 19. Qg3 {[%clk 0:00:00.8]} 19... Bc3+
{[%clk 0:01:54.1]} 0-1

[Event "Live Chess"]
[Site "Chess.com"]
[Date "2023.05.20"]
[Round "-"]
[White "Fazer180"]
[Black "KeithArkell"]
[Result "0-1"]
[WhiteElo "1728"]
[BlackElo "2612"]
[TimeControl "300"]
[EndTime "10:47:27 PDT"]
[Termination "KeithArkell won by resignation"]

1. e4 {[%clk 0:04:58.6]} 1... c6 {[%clk 0:04:58.6]} 2. d4 {[%clk 0:04:57]} 2...
d5 {[%clk 0:04:57.3]} 3. Nc3 {[%clk 0:04:56.7]} 3... dxe4 {[%clk 0:04:56.1]} 4.
Nxe4 {[%clk 0:04:56.3]} 4... Nd7 {[%clk 0:04:55.2]} 5. Nf3 {[%clk 0:04:52.5]}
5... Ngf6 {[%clk 0:04:54.3]} 6. Nxf6+ {[%clk 0:04:50.5]} 6... Nxf6 {[%clk
0:04:53.5]} 7. Bc4 {[%clk 0:04:49.6]} 7... Bf5 {[%clk 0:04:51.7]} 8. O-O {[%clk
0:04:45.9]} 8... e6 {[%clk 0:04:50.8]} 9. Bf4 {[%clk 0:04:41.2]} 9... Bd6 {[%clk
0:04:49.5]} 10. Bxd6 {[%clk 0:04:39.7]} 10... Qxd6 {[%clk 0:04:48.5]} 11. c3
{[%clk 0:04:32]} 11... Bg4 {[%clk 0:04:45.6]} 12. Be2 {[%clk 0:04:24]} 12... O-O
{[%clk 0:04:43.8]} 13. Qb3 {[%clk 0:04:22.2]} 13... b5 {[%clk 0:04:39.6]} 14. h3
{[%clk 0:04:16.2]} 14... Bh5 {[%clk 0:04:37.3]} 15. Qc2 {[%clk 0:04:09.7]} 15...
Nd5 {[%clk 0:04:33.7]} 16. Nh2 {[%clk 0:03:51.8]} 16... Bxe2 {[%clk 0:04:29.3]}
17. Qxe2 {[%clk 0:03:51.7]} 17... Rfe8 {[%clk 0:04:26.4]} 18. Rfe1 {[%clk
0:03:44.7]} 18... a6 {[%clk 0:04:21.8]} 19. Qe5 {[%clk 0:03:40.8]} 19... Qxe5
{[%clk 0:04:20.7]} 20. Rxe5 {[%clk 0:03:40.3]} 20... Rad8 {[%clk 0:04:19.2]} 21.
a4 {[%clk 0:03:35.9]} 21... g6 {[%clk 0:04:17.8]} 22. axb5 {[%clk 0:03:33.2]}
22... axb5 {[%clk 0:04:17.7]} 23. Ng4 {[%clk 0:03:22.7]} 23... Kg7 {[%clk
0:04:15.9]} 24. Ree1 {[%clk 0:03:12.8]} 24... Ra8 {[%clk 0:04:14.7]} 25. Ne5
{[%clk 0:03:09.2]} 25... Ne7 {[%clk 0:04:03.2]} 26. Ra3 {[%clk 0:02:51.1]} 26...
Rxa3 {[%clk 0:04:01.1]} 27. bxa3 {[%clk 0:02:51]} 27... Ra8 {[%clk 0:03:59.3]}
28. Ra1 {[%clk 0:02:50.6]} 28... f6 {[%clk 0:03:56.5]} 29. Nd3 {[%clk
0:02:47.2]} 29... Nd5 {[%clk 0:03:55.7]} 30. Nb4 {[%clk 0:02:43.4]} 30... Nxb4
{[%clk 0:03:50.3]} 31. cxb4 {[%clk 0:02:41.6]} 31... Kf7 {[%clk 0:03:49.4]} 32.
Kf1 {[%clk 0:02:39.2]} 32... Ke7 {[%clk 0:03:48.7]} 33. Ke2 {[%clk 0:02:38.9]}
33... Kd6 {[%clk 0:03:48.1]} 34. Kd3 {[%clk 0:02:36.9]} 34... Kd5 {[%clk
0:03:47.4]} 35. f4 {[%clk 0:02:33.4]} 35... h6 {[%clk 0:03:45.7]} 36. g4 {[%clk
0:02:32.1]} 36... g5 {[%clk 0:03:44.9]} 37. fxg5 {[%clk 0:02:25]} 37... hxg5
{[%clk 0:03:44.8]} 38. Kc3 {[%clk 0:02:19.3]} 38... Rh8 {[%clk 0:03:40.9]} 39.
Rh1 {[%clk 0:02:17]} 39... f5 {[%clk 0:03:40.2]} 40. gxf5 {[%clk 0:02:10.9]}
40... exf5 {[%clk 0:03:40.1]} 41. Kd3 {[%clk 0:02:07.4]} 41... g4 {[%clk
0:03:35.9]} 42. h4 {[%clk 0:02:06]} 42... f4 {[%clk 0:03:32.2]} 43. h5 {[%clk
0:02:04.1]} 43... g3 {[%clk 0:03:30.9]} 44. Ke2 {[%clk 0:02:01]} 44... Ke4
{[%clk 0:03:30.1]} 45. Rh4 {[%clk 0:01:56.6]} 45... Rh6 {[%clk 0:03:28.8]} 46.
Kf1 {[%clk 0:01:49.6]} 46... Kf3 {[%clk 0:03:27]} 47. d5 {[%clk 0:01:45.9]}
47... cxd5 {[%clk 0:03:24.6]} 48. a4 {[%clk 0:01:45.4]} 48... Rc6 {[%clk
0:03:22.9]} 49. Ke1 {[%clk 0:01:43.2]} 49... g2 {[%clk 0:03:20.6]} 50. Rh3+
{[%clk 0:01:40.1]} 50... Kg4 {[%clk 0:03:19.5]} 51. h6 {[%clk 0:01:33.4]} 51...
g1=Q+ {[%clk 0:03:17.6]} 0-1